bitfinex/quotes_SOLUSD_20260120
["timestamp","ask_amount","ask_price","bid_price","bid_amount"]
[1768920258078,4.31781661,129.14,129.08,4.40853163]
[1768920258079,2.88012196,129.12,129.08,4.40853163]
[1768920258480,7.19793857,129.12,129.07,2.88012196]
[1768920258675,7.19793857,129.12,129.07,7.28865359]
[1768920258881,2.88012196,129.11,129.07,7.28865359]
[1768920260183,2.88012196,129.14,129.1,4.40853163]
[1768920260685,2.88012196,129.13,129.08,4.40853163]
[1768920260882,2.88012196,129.13,129.07,7.74738326]
[1768920260883,2.88012196,129.14,129.11,4.40853163]
[1768920261074,16.98,129.15,129.11,7.28865359]
[1768920261272,19.86012196,129.15,129.11,7.28865359]
[1768920261585,10.62189969,129.17,129.09,7.74626442]
[1768920261882,16.98,129.18,129.14,7.28865359]
[1768920262068,2.88012196,129.17,129.12,7.28865359]
[1768920262269,31.91920806,129.18,129.13,7.28865359]
[1768920262583,27.60139145,129.18,129.11,4.40853163]
[1768920262787,2.88012196,129.16,129.11,7.28865359]
[1768920262988,10.62264139,129.16,129.11,7.28865359]
[1768920263185,7.74198212,129.17,129.13,7.28865359]
[1768920263487,16.98,129.18,129.13,7.28865359]
[1768920263782,10.72047952,129.2,129.15,7.28865359]
[1768920263991,2.88012196,129.19,129.15,7.28865359]
[1768920264182,2.88012196,129.19,129.14,7.28865359]
[1768920264584,7.84035756,129.2,129.16,4.40853163]
[1768920264878,0.1,129.2,129.17,7.28865359]
[1768920265084,0.1,129.2,129.19,4.40853163]
[1768920265291,2.88012196,129.23,129.19,4.40853163]
[1768920266091,3.08012196,129.27,129.22,7.28865359]
[1768920266396,0.2,129.27,129.23,7.28865359]
[1768920266570,10.81589273,129.27,129.22,2.88012196]
[1768920266891,7.93577077,129.27,129.23,4.40853163]
[1768920267189,2.88012196,129.25,129.19,4.40853163]
[1768920267488,2.88012196,129.25,129.21,2.88012196]
[1768920267692,7.93577077,129.27,129.22,7.28865359]
[1768920267994,2.88012196,129.26,129.22,7.28865359]
[1768920268195,7.93577077,129.27,129.22,7.28865359]
[1768920268692,10.81589273,129.27,129.22,7.28865359]
[1768920268894,2.88012196,129.26,129.22,7.28865359]
[1768920269081,10.81589273,129.27,129.22,7.28865359]
[1768920269278,10.81589273,129.27,129.23,4.40853163]
[1768920269470,7.93586979,129.27,129.24,4.40853163]
[1768920269671,3.08012196,129.27,129.22,15.02732084]
[1768920269888,0.2,129.27,129.23,7.28865359]
[1768920270088,7.9357594,129.27,129.23,7.28865359]
[1768920270787,10.81588136,129.27,129.23,4.40853163]
[1768920270988,0.2,129.27,129.23,7.28865359]
[1768920271577,10.81593599,129.27,129.21,4.40853163]
[1768920271786,2.88012196,129.26,129.22,4.40853163]
[1768920271988,2.88012196,129.26,129.22,7.28865359]
[1768920272181,0.2,129.27,129.24,7.28865359]
[1768920272574,0.2,129.27,129.24,4.40853163]
[1768920272780,0.2,129.27,129.24,7.28865359]
[1768920272996,0.2,129.3,129.27,4.40853163]
[1768920273200,33.41689579,129.35,129.29,2.88012196]
[1768920273375,10.71168218,129.34,129.29,2.88012196]
[1768920273575,7.19793857,129.31,129.26,7.28865359]
[1768920273788,4.31781661,129.33,129.27,7.28865359]
[1768920274002,2.88012196,129.32,129.27,7.28865359]
[1768920274493,2.88012196,129.3,129.25,7.28865359]
[1768920274687,2.88012196,129.3,129.26,4.40853163]
[1768920275193,14.93248417,129.3,129.24,7.28865359]
[1768920275385,2.88012196,129.28,129.23,2.88012196]
[1768920275585,2.88012196,129.28,129.23,15.02668654]
[1768920275777,2.88012196,129.28,129.24,4.40853163]
[1768920275971,4.31781661,129.27,129.21,4.40853163]
[1768920276175,4.31781661,129.27,129.22,4.40853163]
[1768920276176,2.88012196,129.26,129.22,4.40853163]
[1768920276371,2.88012196,129.25,129.2,7.28865359]
[1768920276680,4.31781661,129.27,129.2,7.28865359]
[1768920276681,2.88012196,129.24,129.2,4.40853163]
[1768920276878,2.88012196,129.22,129.18,4.40853163]
[1768920277278,4.31781661,129.24,129.19,4.40853163]
[1768920277279,2.88012196,129.23,129.19,4.40853163]
[1768920277473,4.31781661,129.24,129.17,7.74149579]
[1768920277474,2.88012196,129.21,129.17,4.40853163]
[1768920277689,7.73874013,129.22,129.19,4.40853163]
[1768920277877,10.61886209,129.22,129.19,4.40853163]
[1768920278079,2.88012196,129.21,129.18,4.40853163]
[1768920278279,2.88012196,129.21,129.16,7.74207398]
[1768920278280,2.88012196,129.21,129.16,4.40853163]
[1768920278481,2.88012196,129.19,129.16,4.40853163]
[1768920279197,2.88012196,129.21,129.17,4.40853163]
[1768920280083,2.88012196,129.2,129.17,4.40853163]
[1768920280402,21.27781661,129.23,129.19,4.40853163]
[1768920280403,7.73847994,129.23,129.19,4.40853163]
[1768920280600,7.7369439,129.25,129.19,4.40853163]
[1768920280787,2.88012196,129.23,129.19,7.28865359]
[1768920280997,7.7369439,129.25,129.2,7.28865359]
[1768920281184,21.27781661,129.27,129.21,2.88012196]
[1768920281388,7.73554018,129.28,129.23,7.28865359]
[1768920281692,2.88012196,129.26,129.22,4.40853163]
[1768920281890,12.05335679,129.28,129.22,7.28865359]
[1768920282093,2.88012196,129.26,129.22,4.40853163]
[1768920282498,2.88012196,129.27,129.22,7.28865359]
[1768920282703,2.88012196,129.27,129.23,7.28865359]
[1768920282908,7.73554018,129.28,129.23,4.40853163]
[1768920283100,10.61566214,129.28,129.23,7.28865359]
[1768920283411,7.73462657,129.29,129.25,7.11607806]
[1768920283587,27.57427749,129.3,129.25,7.11607806]
[1768920283992,10.61427749,129.3,129.25,7.11607806]
[1768920284187,2.88012196,129.32,129.28,4.2359561]
[1768920284588,7.831796,129.34,129.29,7.11607806]
[1768920284897,0.1,129.34,129.31,2.88012196]
[1768920285088,0.1,129.34,129.3,7.11607806]
[1768920285293,10.71187462,129.34,129.29,2.88012196]
[1768920285496,2.98012196,129.34,129.29,7.16537782]
[1768920285817,10.71183121,129.34,129.29,7.16537782]
[1768920285984,0.1,129.34,129.3,7.16537782]
[1768920286188,2.98012196,129.34,129.3,7.16537782]
[1768920286386,10.71172578,129.34,129.29,2.88012196]
[1768920286687,4.38103332,129.33,129.26,4.28525586]
[1768920286891,7.26115528,129.33,129.28,2.88012196]
[1768920287096,2.88012196,129.33,129.29,2.88012196]
[1768920287904,2.88012196,129.33,129.28,14.9004703]
[1768920288391,10.71193565,129.34,129.29,2.88012196]
[1768920288990,10.70470463,129.34,129.29,2.87289094]
[1768920289208,10.70470463,129.34,129.29,7.1581468]
[1768920289428,0.1,129.34,129.32,7.1581468]
[1768920289597,0.77080582,129.35,129.33,2.87289094]
[1768920289787,0.77080582,129.35,129.34,2.87289094]
[1768920290115,4.38103332,129.38,129.34,2.87289094]
[1768920290294,12.110378,129.38,129.34,2.87289094]
[1768920290615,7.25392426,129.37,129.32,2.87289094]
[1768920290786,4.38103332,129.37,129.33,2.87289094]
[1768920291194,4.38103332,129.37,129.31,2.69444425]
[1768920291598,4.38103332,129.37,129.33,2.87289094]
[1768920291920,12.11084966,129.37,129.33,2.87289094]
[1768920292100,12.11084966,129.37,129.32,7.73263074]
[1768920292101,4.38103332,129.35,129.32,2.87289094]
[1768920292302,4.38103332,129.34,129.3,2.87289094]
[1768920292699,7.25392426,129.31,129.27,2.87289094]
[1768920293022,7.25392426,129.3,129.25,2.87289094]
[1768920293220,7.25392426,129.29,129.24,10.61023876]
[1768920293421,4.38103332,129.29,129.25,2.87289094]
[1768920293731,4.38103332,129.29,129.26,2.87289094]
[1768920293929,4.38103332,129.29,129.24,7.73734782]
[1768920293930,4.38103332,129.29,129.25,2.87289094]
[1768920294096,14.98852409,129.29,129.24,10.61004712]
[1768920294302,7.25392426,129.29,129.24,10.61004712]
[1768920294501,4.38103332,129.29,129.24,2.87289094]
[1768920294708,7.25392426,129.29,129.24,10.61023434]
[1768920294914,2.87289094,129.28,129.23,5.56733519]
[1768920295113,7.25392426,129.29,129.24,10.61008423]
[1768920295324,7.25392426,129.29,129.25,10.60972525]
[1768920295496,7.25392426,129.29,129.24,10.61026501]
[1768920295497,4.38103332,129.28,129.24,10.61026501]
[1768920295704,7.25392426,129.28,129.23,2.87289094]
[1768920296010,7.25392426,129.28,129.23,10.61080532]
[1768920296216,7.25392426,129.28,129.23,7.73791438]
[1768920296437,7.25392426,129.27,129.23,10.61080532]
[1768920296732,7.25392426,129.27,129.22,10.61150069]
[1768920296893,2.87289094,129.26,129.22,7.73860975]
[1768920297099,4.38103332,129.25,129.21,10.61202316]
[1768920297318,7.25392426,129.25,129.21,7.73913222]
[1768920298301,7.25392426,129.25,129.2,10.61257137]
[1768920298614,2.87289094,129.23,129.19,7.74034339]
[1768920298820,2.87289094,129.23,129.18,10.61380541]
[1768920299206,16.94,129.25,129.2,2.87289094]
[1768920299401,24.19392426,129.25,129.2,2.87289094]
[1768920299602,7.25392426,129.25,129.2,2.87289094]
[1768920300124,7.25392426,129.25,129.2,10.61279902]
[1768920300305,4.38103332,129.24,129.2,2.87289094]
[1768920300503,10.61016062,129.25,129.16,2.87289094]
[1768920300504,2.87289094,129.21,129.16,2.87289094]
[1768920300708,7.25392426,129.24,129.19,2.87289094]
[1768920300912,4.38103332,129.24,129.17,2.69444425]
[1768920301125,4.38103332,129.23,129.19,2.87289094]
[1768920301327,7.25392426,129.23,129.18,10.61384742]
[1768920301515,7.25392426,129.22,129.17,2.87289094]
[1768920301716,2.87289094,129.21,129.16,2.87289094]
[1768920302026,4.38103332,129.2,129.16,2.87289094]
[1768920302231,7.25392426,129.17,129.1,2.69444425]
[1768920302531,7.25392426,129.15,129.11,10.81818782]
[1768920302736,7.25392426,129.13,129.11,0.2]
[1768920303031,7.25392426,129.14,129.09,10.61903344]
[1768920303232,4.38103332,129.1,129.05,7.74835461]
[1768920303414,7.25392426,129.1,129.05,10.62173405]
[1768920303613,2.87289094,129.15,129.09,5.76733519]
[1768920303614,16.96,129.15,129.09,5.76733519]
[1768920303832,2.87289094,129.14,129.09,5.76733519]
[1768920304022,7.25392426,129.15,129.1,2.87289094]
[1768920304216,7.25392426,129.11,129.06,2.87289094]
[1768920304418,7.25392426,129.13,129.08,10.61981573]
[1768920304617,4.38103332,129.11,129.05,2.89444425]
[1768920304820,7.25392426,129.1,129.05,2.87289094]
[1768920305225,2.87289094,129.09,129.04,13.51687021]
[1768920305438,2.87289094,129.09,128.84,10.61632938]
[1768920305439,4.38103332,129.08,129.02,5.76733519]
[1768920305626,7.25392426,129.1,129.05,2.87289094]
[1768920305934,4.38103332,129.11,129.07,2.87289094]
[1768920306639,4.38103332,129.08,129.02,2.89444425]
[1768920306940,7.25392426,129.08,129.03,2.87289094]
[1768920307748,7.25392426,129.08,129.03,10.62300362]
[1768920308044,4.38103332,129.05,128.99,19.38083435]
[1768920308232,2.87289094,129.06,129.01,10.62422464]
[1768920308432,7.25392426,129.06,129.01,7.7513337]
[1768920308745,7.25392426,129.06,129.01,2.87289094]
[1768920308930,7.25392426,129.05,129.0,2.87289094]
[1768920309133,7.25392426,129.05,129.01,2.87289094]
[1768920309540,4.38103332,129.05,129.01,2.87289094]
[1768920309846,7.25392426,129.05,129.01,2.87289094]
[1768920310144,2.87289094,129.06,129.01,10.62410987]
[1768920310335,7.25392426,129.06,129.01,10.62410987]
[1768920310648,7.25392426,129.07,129.02,2.87289094]
[1768920311042,7.25392426,129.06,129.01,10.62410987]
[1768920311343,4.38103332,129.04,129.0,10.6247516]
[1768920311518,4.32103327,129.04,129.0,10.6247516]
[1768920311721,4.26103323,129.04,129.0,10.6247516]
[1768920311924,2.87289094,129.03,128.97,16.96]
[1768920312132,2.87289094,129.02,128.97,10.62625598]
[1768920312339,2.8128909,129.02,128.97,10.62625598]
[1768920312543,2.87289094,129.03,128.98,2.87289094]
[1768920312922,2.87289094,129.08,128.97,10.76780938]
[1768920312923,36.3283036,129.08,129.01,2.87289094]
[1768920313135,2.87289094,129.06,129.01,2.87289094]
[1768920313545,7.74721405,129.08,129.02,2.87289094]
[1768920313742,7.25392426,129.06,129.01,2.87289094]
[1768920314440,7.25392426,129.04,129.0,2.87289094]
[1768920314820,2.87289094,129.03,128.99,2.87289094]
[1768920315020,7.25392426,129.04,128.99,10.62539462]
[1768920315220,4.14491402,129.02,128.98,2.87289094]
[1768920315444,46.94793889,129.08,128.95,5.34408856]
[1768920315445,7.01780496,129.01,128.95,5.34408856]
[1768920315645,4.14491402,129.0,128.94,19.38807064]
[1768920315853,4.14491402,129.0,128.96,2.87289094]
[1768920316251,4.14491402,129.04,128.99,2.87289094]
[1768920316581,7.01780496,129.04,129.0,2.87289094]
[1768920316720,7.01780496,129.04,128.97,3.01444434]
[1768920316721,7.01780496,129.04,128.99,2.87289094]
[1768920316927,2.87289094,129.02,128.98,2.87289094]
[1768920317155,4.14491402,129.0,128.96,2.87289094]
[1768920317350,7.01780496,129.0,128.96,2.87289094]
[1768920317648,7.01780496,128.99,128.95,2.87289094]
[1768920317866,4.14491402,128.99,128.96,2.87289094]
[1768920318370,4.14491402,129.0,128.96,2.87289094]
[1768920318571,14.76987052,129.0,128.95,2.87289094]
[1768920318774,7.01780496,129.0,128.96,2.87289094]
[1768920319272,7.01780496,128.98,128.93,7.75579634]
[1768920319489,2.87289094,128.99,128.94,10.6283607]
[1768920319639,21.12491402,129.02,128.97,2.87289094]
[1768920319843,7.01780496,129.01,128.97,2.87289094]
[1768920320057,4.14491402,129.05,128.99,2.87289094]
[1768920320243,7.01780496,129.04,128.99,2.87289094]
[1768920320444,4.14491402,129.04,129.0,2.87289094]
[1768920320650,4.14491402,129.06,129.02,2.87289094]
[1768920320859,4.14491402,129.06,128.99,3.01444434]
[1768920320860,4.14491402,129.04,129.01,2.87289094]
[1768920321056,11.89227323,129.08,129.03,2.87289094]
[1768920321272,4.14491402,129.07,129.04,2.87289094]
[1768920321664,4.14491402,129.07,129.05,2.87289094]
[1768920321872,7.01780496,129.09,129.05,2.87289094]
[1768920322652,14.76434389,129.09,129.05,2.87289094]
[1768920322964,4.14491402,129.07,129.04,2.87289094]
[1768920323365,7.74653893,129.09,128.99,22.39509806]
[1768920323366,7.01780496,129.06,128.99,22.39509806]
[1768920323548,7.01780496,129.06,129.02,2.87289094]
[1768920323752,4.14491402,129.06,129.03,2.87289094]
[1768920324457,4.14491402,129.04,128.98,5.34408856]
[1768920324662,4.14491402,129.04,129.0,2.87289094]
[1768920325161,11.89472078,129.04,129.0,2.87289094]
[1768920325481,4.14491402,129.01,128.97,2.87289094]
[1768920325976,7.01780496,129.0,128.95,2.87289094]
[1768920326174,4.14491402,128.98,128.94,10.62800255]
[1768920326371,7.01780496,129.01,128.97,2.87289094]
[1768920326573,7.01780496,129.01,128.95,10.76935737]
[1768920326777,7.01780496,129.03,128.98,2.87289094]
[1768920326964,4.14491402,129.02,128.98,2.87289094]
[1768920327369,2.87289094,129.03,128.99,2.87289094]
[1768920327684,4.14491402,129.04,129.01,2.87289094]
[1768920328181,4.14491402,129.06,129.03,2.87289094]
[1768920328359,4.14491402,129.06,129.02,2.87289094]
[1768920329295,14.76441345,129.09,129.05,2.87289094]
[1768920329586,4.14491402,129.08,129.02,7.75032441]
[1768920329785,4.14491402,129.06,129.02,2.87289094]
[1768920329988,4.14491402,129.05,129.01,2.87289094]
[1768920330492,4.14491402,129.1,129.04,5.88733528]
[1768920330696,4.14491402,129.1,129.06,2.87289094]
[1768920331390,4.14491402,129.09,129.05,2.87289094]
[1768920331611,4.14491402,129.08,129.04,2.87289094]
[1768920331909,4.14491402,129.06,128.99,16.98]
[1768920332202,4.14491402,129.05,129.01,2.87289094]
[1768920332781,7.01780496,129.04,128.99,10.62532912]
[1768920332986,7.01780496,129.04,129.0,2.87289094]
[1768920333168,4.14491402,129.04,129.0,2.87289094]
[1768920333379,7.01780496,129.04,129.0,2.87289094]
[1768920333596,4.14491402,129.08,129.01,3.01444434]
[1768920333885,7.01780496,129.08,129.04,2.87289094]
[1768920334087,7.01780496,129.08,129.0,7.75179911]
[1768920334088,7.01780496,129.07,129.03,2.87289094]
[1768920334481,4.14491402,129.07,129.03,2.87289094]
[1768920334982,14.76599474,129.07,129.03,2.87289094]
[1768920335584,2.87289094,129.08,129.03,10.62289974]
[1768920335807,7.01780496,129.11,129.06,2.87289094]
[1768920335985,4.14491402,129.13,129.1,2.87289094]
[1768920336505,4.14491402,129.12,129.09,2.87289094]
[1768920336704,4.14491402,129.12,129.06,2.96910534]
[1768920336705,7.01780496,129.12,129.08,2.87289094]
[1768920337008,7.01780496,129.12,129.06,2.96910534]
[1768920337009,4.14491402,129.12,129.09,2.87289094]
[1768920337176,4.14491402,129.11,129.07,2.87289094]
[1768920337376,4.14491402,129.11,129.08,2.87289094]
[1768920337875,4.14491402,129.11,129.07,2.87289094]
[1768920338397,4.14491402,129.11,129.08,2.87289094]
[1768920339891,19.35990581,129.14,129.1,2.87289094]
[1768920339892,7.01780496,129.14,129.1,2.87289094]
[1768920340095,4.14491402,129.14,129.1,2.87289094]
[1768920340315,4.14491402,129.14,129.07,10.35740588]
[1768920340316,4.14491402,129.13,129.09,2.87289094]
[1768920340807,4.14491402,129.1,129.04,5.34408856]
[1768920341012,8.27984898,129.18,129.13,4.35717314]
[1768920341171,16.98,129.17,129.15,2.87289094]
[1768920341371,16.98,129.16,129.15,2.87289094]
[1768920342077,10.39868084,129.16,129.15,2.87289094]
[1768920342278,10.61243816,129.21,129.15,2.87289094]
[1768920342479,2.97289094,129.24,129.19,2.87289094]
[1768920342689,0.1,129.24,129.21,2.87289094]
[1768920342907,21.12491402,129.23,129.15,68.6878348]
[1768920343108,4.14491402,129.22,129.19,2.87289094]
[1768920343310,4.14491402,129.22,129.15,29.97316194]
[1768920343311,4.08824751,129.21,129.17,2.87289094]
[1768920343695,4.08824751,129.21,129.18,2.87289094]
[1768920344321,4.08824751,129.21,129.17,7.7414738]
[1768920344502,4.08824751,129.19,129.15,2.87289094]
[1768920344805,16.98,129.18,129.15,10.615822]
[1768920345008,16.98,129.18,129.16,2.87289094]
[1768920345597,3.78288863,129.21,129.17,2.87289094]
[1768920345918,3.78288863,129.23,129.2,2.87289094]
[1768920346218,3.78288863,129.23,129.18,2.87289094]
[1768920346219,3.78288863,129.21,129.18,2.87289094]
[1768920347511,3.78288863,129.23,129.2,2.87289094]
[1768920347709,3.78288863,129.22,129.18,7.74111884]
[1768920347920,3.78288863,129.22,129.18,2.87289094]
[1768920348520,3.78288863,129.22,129.14,5.34408856]
[1768920348521,3.78288863,129.21,129.16,7.74218282]
[1768920348726,3.78288863,129.18,129.14,2.87289094]
[1768920349231,3.78288863,129.17,129.13,2.87289094]
[1768920349432,16.96,129.19,129.1,2.87289094]
[1768920349433,3.78288863,129.15,129.1,2.87289094]
[1768920349740,3.78288863,129.15,129.12,2.87289094]
[1768920349909,3.78288863,129.17,129.13,2.87289094]
[1768920350235,20.74288863,129.17,129.14,2.87289094]
[1768920350413,20.74288863,129.17,129.12,7.74473086]
[1768920350414,20.74288863,129.17,129.13,2.87289094]
[1768920350615,28.48471706,129.17,129.13,2.87289094]
[1768920350823,31.357608,129.17,129.13,2.87289094]
[1768920351003,3.78288863,129.16,129.12,2.88017702]
[1768920351511,3.78288863,129.15,129.12,2.88017702]
[1768920351711,3.78288863,129.15,129.01,11.52070808]
[1768920351712,3.78288863,129.12,129.06,19.37040028]
[1768920352025,23.62306565,129.12,129.07,2.88017702]
[1768920352228,3.78288863,129.1,129.06,2.88017702]
[1768920352531,3.78288863,129.09,129.05,2.88017702]
[1768920352739,6.66306565,129.09,129.05,2.88017702]
[1768920353038,3.78288863,129.06,129.02,2.88017702]
[1768920353928,6.66306565,129.08,129.04,2.88017702]
[1768920354127,20.74288863,129.07,129.03,2.88017702]
[1768920354509,31.37104148,129.07,129.02,2.88017702]
[1768920354709,3.78288863,129.06,129.02,2.88017702]
[1768920355311,3.78288863,129.06,128.98,27.13599007]
[1768920355642,3.78288863,129.06,129.02,2.88017702]
[1768920356016,20.74288863,129.06,129.02,2.88017702]
[1768920356238,20.74288863,129.06,129.04,2.88017702]
[1768920356439,20.74288863,129.06,129.03,2.88017702]
[1768920356620,3.78288863,129.04,129.0,2.88017702]
[1768920357215,3.78288863,129.03,128.99,2.88017702]
[1768920357424,3.78288863,129.03,129.0,2.88017702]
[1768920357957,2.88017702,129.08,129.0,2.88017702]
[1768920357958,3.78288863,129.07,129.02,2.88017702]
[1768920358127,3.78288863,129.07,129.0,7.75181965]
[1768920358128,20.76288863,129.06,129.03,2.88017702]
[1768920358445,3.78288863,129.03,128.99,2.88017702]
[1768920358945,3.78288863,129.03,128.97,7.75357538]
[1768920358946,3.78288863,129.04,128.96,5.34408856]
[1768920359142,6.66306565,129.04,129.0,2.88017702]
[1768920359347,3.78288863,129.03,128.99,2.88017702]
[1768920360050,3.78288863,129.02,128.9,38.78715673]
[1768920360342,3.78288863,129.02,128.98,2.88017702]
[1768920360343,2.88017702,129.02,128.98,2.88017702]
[1768920360546,3.78288863,129.01,128.96,7.75397312]
[1768920360738,3.78288863,129.01,128.98,2.88017702]
[1768920361155,3.78288863,129.05,129.0,2.88017702]
[1768920361326,3.78288863,129.05,129.02,2.88017702]
[1768920361841,11.53186427,129.05,129.01,2.88017702]
[1768920362044,3.78288863,129.04,128.97,7.75325046]
[1768920362226,6.66306565,129.04,128.99,2.88017702]
[1768920362418,3.78288863,129.03,128.99,2.88017702]
[1768920363051,3.78288863,129.03,128.97,7.75325046]
[1768920363246,3.78288863,129.03,128.99,2.88017702]
[1768920363649,11.53186427,129.05,129.02,2.88017702]
[1768920364026,3.78288863,129.04,129.01,2.88017702]
[1768920364223,11.53160451,129.06,129.02,2.88017702]
[1768920364427,6.66306565,129.05,129.01,2.88017702]
[1768920364637,3.78288863,129.04,129.01,2.88017702]
[1768920365126,2.88017702,129.04,128.96,7.75434243]
[1768920365326,3.78288863,129.05,128.98,5.34408856]
[1768920365525,3.78288863,129.05,129.01,2.88017702]
[1768920365753,3.78288863,129.04,129.01,2.88017702]
[1768920365943,3.78288863,129.04,129.02,2.88017702]
[1768920366152,11.53257179,129.04,129.01,2.88017702]
[1768920366336,3.78288863,129.04,129.01,2.88017702]
[1768920366536,11.53257069,129.04,129.01,2.88017702]
[1768920366738,3.78288863,129.04,129.02,2.88017702]
[1768920367455,3.78288863,129.02,128.98,2.88017702]
[1768920367777,67.37538414,129.07,128.98,2.88017702]
[1768920367778,6.45719387,129.26,129.03,3.81645941]
[1768920367930,30.12070808,129.29,129.08,2.88017702]
[1768920367931,3.78288863,129.12,129.08,2.88017702]
[1768920368131,20.76288863,129.12,129.08,2.88017702]
[1768920368359,3.78288863,129.11,129.08,2.88017702]
[1768920368743,3.78288863,129.13,129.1,2.88017702]
[1768920368941,20.76288863,129.12,129.08,2.88017702]
[1768920369167,3.78288863,129.11,129.07,2.88017702]
[1768920369457,3.78288863,129.07,128.95,5.9565132]
[1768920369638,3.78288863,129.07,129.04,2.88017702]
[1768920369841,16.98,129.08,129.07,7.74773378]
[1768920370145,16.98,129.08,129.06,2.88017702]
[1768920370332,16.98,129.08,129.06,10.62830403]
[1768920370534,16.98,129.09,129.06,10.62830403]
[1768920370760,16.98,129.09,129.05,7.74873647]
[1768920370961,3.78288863,129.07,129.03,2.88017702]
[1768920371158,6.66306565,129.06,129.01,2.88017702]
[1768920371459,3.78288863,129.05,129.02,2.88017702]
[1768920371659,3.78288863,129.05,129.01,7.75120467]
[1768920371862,16.98,129.04,129.02,2.88017702]
[1768920372158,16.98,129.04,129.01,2.88017702]
[1768920372348,16.98,129.04,129.0,10.63158989]
[1768920372555,16.98,129.04,128.99,3.43879146]
[1768920372556,3.78288863,129.03,128.99,2.88017702]
[1768920373068,16.98,129.02,128.99,2.88017702]
[1768920373267,3.78288863,129.01,128.95,3.26390963]
[1768920373470,3.78288863,129.0,128.96,2.88017702]
[1768920373656,20.76288863,129.0,128.94,19.38799474]
[1768920373858,3.78288863,128.99,128.95,7.75470131]
[1768920374280,3.78288863,128.99,128.95,10.63487833]
[1768920374474,3.78288863,128.99,128.91,22.69997943]
[1768920374682,3.78288863,128.95,128.91,0.1]
[1768920374859,16.98,128.94,128.91,0.1]
[1768920375053,16.98,128.94,128.91,2.98017702]
[1768920375773,16.98,128.99,128.94,2.67418687]
[1768920375985,16.98,128.99,128.96,2.88017702]
[1768920376656,2.66921692,128.97,128.93,2.88017702]
[1768920377386,2.66921692,129.0,128.96,2.88017702]
[1768920377564,5.54939394,129.0,128.95,2.88017702]
[1768920377765,19.64921692,128.99,128.95,2.88017702]
[1768920378072,2.66921692,128.99,128.95,2.88017702]
[1768920378272,16.98,128.98,128.95,2.88017702]
[1768920378460,10.42194613,128.99,128.95,2.88017702]
[1768920378461,16.98,128.97,128.95,2.88017702]
[1768920378661,2.66921692,128.99,128.95,2.88017702]
[1768920378859,16.98,128.98,128.93,2.67418687]
[1768920379076,2.66921692,128.97,128.93,2.88017702]
[1768920379269,16.98,128.96,128.95,2.88017702]
[1768920379466,2.66921692,128.99,128.95,2.88017702]
[1768920379771,16.94170874,128.96,128.93,2.88017702]
[1768920379982,2.66921692,128.99,128.95,2.88017702]
[1768920380172,16.98,128.98,128.95,2.88017702]
[1768920380363,19.64921692,128.98,128.95,2.88017702]
[1768920380565,16.98,128.97,128.95,2.88017702]
[1768920381561,16.98,128.96,128.95,2.88017702]
[1768920382073,16.98,128.96,128.93,2.88017702]
[1768920382277,19.64921692,128.96,128.93,2.88017702]
[1768920382661,27.40358982,128.96,128.93,2.88017702]
[1768920382977,27.40358982,128.96,128.91,5.44408856]
[1768920382978,2.66921692,128.93,128.91,0.1]
[1768920383185,16.98,128.92,128.91,0.1]
[1768920383790,2.66921692,128.93,128.91,0.1]
[1768920383959,16.98,128.92,128.91,0.1]
[1768920384385,10.42552619,128.93,128.91,0.1]
[1768920384564,16.98,128.92,128.91,0.1]
[1768920385671,2.66921692,128.95,128.91,2.98017702]
[1768920385871,16.98,128.92,128.91,0.1]
[1768920386465,2.66921692,128.91,128.87,9.77080582]
[1768920387086,10.42558219,128.93,128.88,2.88017702]
[1768920387281,10.42558219,128.93,128.87,17.53039191]
[1768920387282,2.66921692,128.93,128.87,12.65098284]
[1768920387482,16.98,128.92,128.91,2.88017702]
[1768920387883,16.98,128.92,128.9,2.88017702]
[1768920388084,2.66921692,128.91,128.89,2.88017702]
[1768920388286,2.66921692,128.9,128.87,9.77080582]
[1768920388489,16.98,128.89,128.87,9.77080582]
[1768920388675,2.66921692,128.9,128.87,9.77080582]
[1768920388881,16.98,128.89,128.87,12.65098284]
[1768920389408,19.64921692,128.89,128.87,9.77080582]
[1768920389616,2.66921692,128.87,128.85,1e-08]
[1768920389774,16.98,128.86,128.85,1e-08]
[1768920389973,16.98,128.86,128.81,0.2]
[1768920389974,19.86017702,128.86,128.81,0.2]
[1768920390180,7.76156473,128.84,128.81,0.2]
[1768920390376,16.98,128.83,128.81,0.2]
[1768920390586,19.64921692,128.83,128.81,0.2]
[1768920390979,22.52939394,128.83,128.81,0.2]
[1768920391180,19.64921692,128.83,128.81,0.2]
[1768920391714,17.0,128.82,128.81,0.2]
[1768920392286,19.66921692,128.82,128.81,0.2]
[1768920393395,2.66921692,128.86,128.81,3.08017702]
[1768920393704,2.66921692,128.84,128.81,0.2]
[1768920394079,2.66921692,128.8,128.73,4.04183657]
[1768920394273,2.66921692,128.78,128.71,7.76882507]
[1768920394488,2.60921689,128.78,128.74,2.88017702]
[1768920394916,17.0,128.77,128.74,2.88017702]